bitfinex/quotes_BTCUSD_20260103
["timestamp","ask_amount","ask_price","bid_price","bid_amount"]
[1767420476702,0.01110025,90088.0,90083.0,0.01110087]
[1767420477040,0.02222001,90090.0,90085.0,0.01110062]
[1767420477247,0.01112,90090.0,90086.0,0.0111005]
[1767420478109,0.02222001,90090.0,90085.0,0.01110062]
[1767420478275,0.01112,90090.0,90086.0,0.0111005]
[1767420478480,0.02222001,90090.0,90085.0,0.01110062]
[1767420478679,0.01112,90090.0,90086.0,0.0111005]
[1767420479236,0.01112,90090.0,90087.0,0.01110038]
[1767420479346,0.01112,90090.0,90086.0,0.0111005]
[1767420479551,0.01112,90090.0,90087.0,0.01110038]
[1767420480718,0.0110778,90090.0,90087.0,0.01110038]
[1767420481948,0.0110778,90090.0,90086.0,0.0111005]
[1767420482886,0.02217781,90090.0,90085.0,0.01110062]
[1767420483112,0.0110778,90090.0,90087.0,0.01110038]
[1767420484275,0.0110778,90090.0,90086.0,0.0111005]
[1767420484906,0.01103539,90090.0,90086.0,0.0111005]
[1767420485113,0.0221354,90090.0,90086.0,0.0111005]
[1767420485430,0.01103539,90090.0,90086.0,0.0111005]
[1767420485630,0.02209228,90090.0,90085.0,0.01110062]
[1767420485834,0.02209228,90090.0,90086.0,0.0111005]
[1767420486222,0.01099227,90090.0,90087.0,0.01110038]
[1767420487992,0.05549676,90096.0,90088.0,0.05550128]
[1767420488158,0.01112,90095.0,90089.0,0.06035991]
[1767420488535,0.00036008,90101.0,90092.0,0.01109976]
[1767420488735,0.01112,90100.0,90095.0,0.01109939]
[1767420488975,0.01107642,90100.0,90095.0,0.0665958]
[1767420489555,0.01107642,90100.0,90097.0,0.01109914]
[1767420489937,0.01107642,90100.0,90096.0,0.01109927]
[1767420490193,0.000999,90097.0,90094.0,0.01109951]
[1767420490718,0.02217519,90100.0,90096.0,0.01109927]
[1767420490866,0.0110989,90099.0,90094.0,0.01109951]
[1767420491074,0.0110989,90099.0,90095.0,0.01109939]
[1767420491272,0.02217519,90100.0,90095.0,0.01109939]
[1767420491715,0.0110989,90099.0,90095.0,0.01109939]
[1767420492241,0.0110989,90099.0,90094.0,0.01109951]
[1767420492435,0.0109905,90100.0,90097.0,0.01109914]
[1767420492575,0.01109902,90098.0,90094.0,0.01010051]
[1767420492783,0.0110989,90099.0,90094.0,0.01010051]
[1767420493241,0.01105547,90099.0,90093.0,0.01109964]
[1767420493380,0.01109902,90098.0,90092.0,0.01109976]
[1767420493921,0.01109927,90096.0,90091.0,0.01109988]
[1767420494068,0.01109914,90097.0,90092.0,0.01109976]
[1767420494521,0.01109927,90096.0,90092.0,0.01109976]
[1767420494721,0.01105666,90097.0,90092.0,0.01109976]
[1767420495284,0.01101279,90097.0,90093.0,0.01109964]
[1767420495937,0.01105698,90098.0,90093.0,0.01109964]
[1767420496143,0.02208927,90100.0,90094.0,0.01109951]
[1767420496296,0.0109905,90100.0,90098.0,0.000999]
[1767420496898,0.01112,90099.0,90097.0,0.01109914]
[1767420497371,0.00036008,90101.0,90098.0,0.01109902]
[1767420497481,0.01112,90100.0,90099.0,0.000999]
[1767420497889,0.01112,90100.0,90098.0,0.01109902]
[1767420498503,0.01148008,90101.0,90097.0,0.01109914]
[1767420498705,0.02257873,90101.0,90097.0,0.01109914]
[1767420499333,0.01148008,90101.0,90097.0,0.01109914]
[1767420499822,0.02257873,90101.0,90096.0,0.01109927]
[1767420500645,0.01109877,90100.0,90095.0,0.06659636]
[1767420500852,0.01109877,90100.0,90096.0,0.01109927]
[1767420501031,0.02257873,90101.0,90096.0,0.01109927]
[1767420502075,0.02221828,90104.0,90099.0,0.04925978]
[1767420502660,0.0110984,90103.0,90099.0,0.04925978]
[1767420502848,0.01109865,90101.0,90097.0,0.01109914]
[1767420503050,0.01109877,90100.0,90097.0,0.04925978]
[1767420503366,0.01109853,90102.0,90097.0,0.04925978]
[1767420503936,0.01109853,90102.0,90097.0,0.54925978]
[1767420504134,0.01109853,90102.0,90097.0,0.56035892]
[1767420504356,0.06659101,90103.0,90098.0,0.01109902]
[1767420504580,0.02221828,90104.0,90099.0,0.0110989]
[1767420505030,0.0110984,90103.0,90098.0,0.01109902]
[1767420505240,0.02221828,90104.0,90099.0,0.0110989]
[1767420505943,0.01112,90104.0,90100.0,0.01109877]
[1767420506290,0.02221828,90104.0,90099.0,0.0110989]
[1767420506441,0.0110984,90103.0,90098.0,0.01109902]
[1767420506836,0.0222184,90103.0,90098.0,0.01109902]
[1767420507466,0.01112,90103.0,90099.0,0.0110989]
[1767420508182,0.01109853,90102.0,90098.0,0.01109902]
[1767420508387,0.01109853,90102.0,90097.0,0.51109914]
[1767420508556,0.01112,90103.0,90099.0,0.0110989]
[1767420508968,0.01112,90103.0,90100.0,0.01109877]
[1767420509659,0.01112,90103.0,90099.0,0.0110989]
[1767420510592,0.01112,90103.0,90100.0,0.01109877]
[1767420510788,0.010121,90103.0,90100.0,0.01109877]
[1767420511876,0.010121,90103.0,90099.0,0.0110989]
[1767420512222,0.010121,90103.0,90100.0,0.01109877]
[1767420512361,0.02221816,90105.0,90100.0,0.01109877]
[1767420514527,0.01109828,90104.0,90097.0,0.5]
[1767420514727,0.06659269,90100.0,90097.0,0.5]
[1767420515066,0.05549506,90099.0,90097.0,0.47757806]
[1767420515276,0.06659269,90100.0,90097.0,0.47757806]
[1767420515756,0.05549493,90099.0,90097.0,0.47657906]
[1767420515910,0.06659269,90100.0,90097.0,0.47657906]
[1767420517491,0.01109877,90100.0,90097.0,0.47657906]
[1767420518872,0.06659306,90100.0,90097.0,0.47657906]
[1767420521027,0.01109877,90100.0,90097.0,0.47657906]
[1767420521481,0.01109865,90101.0,90097.0,0.47657906]
[1767420522378,0.01109877,90100.0,90097.0,0.47657906]
[1767420523431,0.01009977,90100.0,90097.0,0.47657906]
[1767420523755,0.06559409,90100.0,90097.0,0.47657906]
[1767420524952,0.01009977,90100.0,90097.0,0.47657906]
[1767420525155,0.06559382,90100.0,90097.0,0.47657906]
[1767420525986,0.05549495,90099.0,90097.0,0.47657906]
[1767420526423,0.06559382,90100.0,90097.0,0.47657906]
[1767420527226,0.01009977,90100.0,90097.0,0.47657906]
[1767420527611,0.01109865,90101.0,90097.0,0.47657906]
[1767420528139,0.01109877,90100.0,90097.0,0.47657906]
[1767420528354,0.06659313,90100.0,90097.0,0.47657906]
[1767420529286,0.0110984,90103.0,90097.0,0.47657906]
[1767420529488,0.06659091,90103.0,90097.0,0.52653161]
[1767420530130,0.06659091,90103.0,90097.0,0.47657906]
[1767420530327,0.01109865,90101.0,90097.0,0.47657906]
[1767420530725,0.01109853,90102.0,90097.0,0.4876782]
[1767420530930,0.01109853,90102.0,90097.0,0.53763075]
[1767420531153,0.0110984,90103.0,90098.0,0.01109902]
[1767420531314,0.01109853,90102.0,90097.0,0.53763075]
[1767420531912,0.01109853,90102.0,90098.0,0.01109902]
[1767420532370,0.01109828,90104.0,90098.0,0.01109902]
[1767420532524,0.01109853,90102.0,90097.0,0.53763075]
[1767420532868,0.01109853,90102.0,90097.0,0.52653161]
[1767420533168,0.01109877,90100.0,90097.0,0.47657906]
[1767420533374,0.01109865,90101.0,90097.0,0.47657906]
[1767420533774,0.01109877,90100.0,90097.0,0.47657906]
[1767420534072,0.01109877,90100.0,90097.0,0.47586801]
[1767420536441,0.01109865,90101.0,90097.0,0.47586801]
[1767420536930,0.06659279,90100.0,90097.0,0.47486901]
[1767420538385,0.01109877,90100.0,90097.0,0.47486901]
[1767420539585,0.01109865,90101.0,90097.0,0.47486901]
[1767420540624,0.01109877,90100.0,90097.0,0.47486901]
[1767420541356,0.01109853,90102.0,90100.0,0.000999]
[1767420541488,0.0110984,90103.0,90100.0,0.000999]
[1767420541695,0.0110984,90103.0,90098.0,0.01109902]
[1767420541913,0.0665894,90105.0,90099.0,0.0110989]
[1767420542228,0.0110984,90103.0,90099.0,0.0110989]
[1767420542386,0.01109828,90104.0,90099.0,0.0110989]
[1767420542591,0.0110984,90103.0,90098.0,0.01109902]
[1767420542786,0.0110984,90103.0,90099.0,0.0110989]
[1767420543011,0.01109828,90104.0,90100.0,0.01109877]
[1767420543413,0.01109804,90106.0,90099.0,0.0110989]
[1767420543621,0.01109828,90104.0,90098.0,0.01109902]
[1767420544196,0.01109853,90102.0,90097.0,0.47486901]
[1767420544408,0.01109853,90102.0,90098.0,0.01109902]
[1767420544621,0.06659012,90104.0,90099.0,0.0110989]
[1767420544829,0.01109865,90101.0,90097.0,0.48596815]
[1767420545437,0.01109865,90101.0,90097.0,0.47486901]
[1767420545851,0.01109865,90101.0,90097.0,0.48596815]
[1767420546336,0.01109865,90101.0,90097.0,0.47486901]
[1767420546532,0.01109853,90102.0,90098.0,0.01109902]
[1767420546737,0.0110984,90103.0,90098.0,0.01109902]
[1767420546943,0.01109828,90104.0,90099.0,0.0110989]
[1767420547354,0.01109754,90110.0,90104.0,0.000999]
[1767420547558,0.01112,90109.0,90106.0,0.01109804]
[1767420547772,0.01112,90109.0,90105.0,0.06658856]
[1767420547965,0.01112,90109.0,90104.0,0.01109828]
[1767420548414,0.01109767,90109.0,90104.0,0.01109828]
[1767420548611,0.01112,90108.0,90104.0,0.01109828]
[1767420548995,0.02221779,90108.0,90104.0,0.01109828]
[1767420549524,0.01112,90107.0,90106.0,0.0554902]
[1767420549725,0.010121,90107.0,90106.0,0.0554902]
[1767420550664,0.01112,90107.0,90106.0,0.01109804]
[1767420550894,0.01112,90107.0,90103.0,0.0110984]
[1767420551063,0.01112,90107.0,90104.0,0.01109828]
[1767420551248,0.01112,90107.0,90103.0,0.0110984]
[1767420551599,0.01112,90107.0,90104.0,0.01109828]
[1767420551739,0.01109767,90109.0,90104.0,0.01109828]
[1767420551740,0.01109754,90110.0,90105.0,0.01109816]
[1767420551954,0.01112,90109.0,90106.0,0.01109804]
[1767420552907,0.01112,90109.0,90105.0,0.01109816]
[1767420553033,0.000999,90106.0,90105.0,0.01109816]
[1767420553239,0.000999,90106.0,90103.0,0.0110984]
[1767420553478,0.01112,90107.0,90104.0,0.01109828]
[1767420553885,0.01112,90107.0,90103.0,0.0110984]
[1767420554088,0.01112,90107.0,90104.0,0.01109828]
[1767420555149,0.01112,90107.0,90103.0,0.0110984]
[1767420555352,0.000999,90104.0,90103.0,0.0110984]
[1767420555554,0.01112,90107.0,90103.0,0.0110984]
[1767420556385,0.31943673,90218.0,90107.0,0.01109791]
[1767420556386,0.05588571,90114.0,90107.0,0.01109791]
[1767420556588,0.0110973,90112.0,90107.0,0.01109791]
[1767420556787,0.0001514,90113.0,90109.0,0.01109767]
[1767420557002,0.000999,90109.0,90108.0,0.01109779]
[1767420557206,0.01124857,90113.0,90108.0,0.01109779]
[1767420557387,0.0110973,90112.0,90108.0,0.01109779]
[1767420557586,0.01109816,90105.0,90097.0,0.48598901]
[1767420557904,0.000999,90097.0,90090.0,0.01112]
[1767420558105,0.00107089,90097.0,90094.0,0.01109951]
[1767420558438,7.189e-05,90097.0,90094.0,0.01109951]
[1767420558636,7.189e-05,90097.0,90094.0,0.09990575]
[1767420559050,7.189e-05,90097.0,90095.0,0.0554964]
[1767420559773,7.189e-05,90097.0,90094.0,0.09990575]
[1767420561004,7.189e-05,90097.0,90094.0,0.06659668]
[1767420561197,7.189e-05,90097.0,90094.0,0.09990575]
[1767420561531,7.189e-05,90097.0,90095.0,0.05549645]
[1767420563849,7.189e-05,90097.0,90095.0,0.06659473]
[1767420567957,0.00473259,90104.0,90099.0,0.0110989]
[1767420568179,0.00478446,90104.0,90099.0,0.0100999]
[1767420568380,0.00478446,90104.0,90098.0,0.01109902]
[1767420568781,0.00478446,90104.0,90099.0,0.0110989]
[1767420569786,0.0110984,90103.0,90098.0,0.01109902]
[1767420570325,5.187e-05,90104.0,90098.0,0.01109902]
[1767420570492,5.187e-05,90104.0,90100.0,0.01109877]
[1767420570689,5.187e-05,90104.0,90101.0,0.01109865]
[1767420571607,5.187e-05,90104.0,90100.0,0.01109877]
[1767420572679,5.187e-05,90104.0,90101.0,0.01109865]
[1767420578105,5.187e-05,90104.0,90100.0,0.01109877]
[1767420578307,5.187e-05,90104.0,90101.0,0.01109865]
[1767420578802,5.187e-05,90104.0,90099.0,0.0110989]
[1767420578970,5.187e-05,90104.0,90101.0,0.01109865]
[1767420579158,5.187e-05,90104.0,90100.0,0.01109877]
[1767420581421,5.187e-05,90104.0,90099.0,0.0110989]
[1767420581577,5.187e-05,90104.0,90100.0,0.01109877]
[1767420581776,5.187e-05,90104.0,90099.0,0.0110989]
[1767420581983,0.01115015,90104.0,90099.0,0.0110989]
[1767420582206,5.187e-05,90104.0,90100.0,0.01109877]
[1767420582403,0.01115015,90104.0,90099.0,0.0110989]
[1767420583175,0.01109804,90106.0,90104.0,0.00094713]
[1767420583369,0.01109804,90106.0,90099.0,0.06659282]
[1767420583776,0.01109804,90106.0,90101.0,0.01109865]
[1767420583976,0.01109804,90106.0,90100.0,0.01109877]
[1767420584816,0.01109816,90105.0,90100.0,0.01109877]
[1767420585426,0.01109828,90104.0,90099.0,0.0110989]
[1767420589154,0.01109816,90105.0,90100.0,0.01109877]
[1767420589385,0.01109828,90104.0,90099.0,0.0110989]
[1767420589669,0.01109828,90104.0,90098.0,0.01109902]
[1767420589810,0.01109828,90104.0,90099.0,0.0110989]
[1767420595371,0.0110984,90103.0,90098.0,0.01109902]
[1767420595692,0.01109804,90106.0,90100.0,0.01109877]
[1767420595888,0.01109791,90107.0,90102.0,0.01109853]
[1767420596089,5.2e-05,90102.0,90101.0,0.01109865]
[1767420596597,0.01109779,90108.0,90103.0,0.0110984]
[1767420596898,0.01109791,90107.0,90102.0,0.01109853]
[1767420597309,0.05931817,90108.0,90103.0,0.0110984]
[1767420597495,0.05931817,90108.0,90102.0,0.01109853]
[1767420597647,0.05931817,90108.0,90103.0,0.0110984]
[1767420597849,0.01109791,90107.0,90102.0,0.01109853]
[1767420598566,0.05931817,90108.0,90103.0,0.0110984]
[1767420599606,0.01109779,90108.0,90103.0,0.0110984]
[1767420599787,0.0777063,90109.0,90103.0,0.0110984]
[1767420600536,0.0777063,90109.0,90104.0,0.01109828]
[1767420600537,0.0697626,90109.0,90104.0,0.01109828]
[1767420600865,0.01109779,90108.0,90103.0,0.0110984]
[1767420601939,0.01109791,90107.0,90101.0,0.06659136]
[1767420602227,0.01109791,90107.0,90102.0,0.01109853]
[1767420604404,0.01109779,90108.0,90103.0,0.0110984]
[1767420605139,0.05866493,90109.0,90108.0,0.000947]
[1767420605287,0.01112,90109.0,90108.0,0.000947]
[1767420605493,0.01109742,90111.0,90108.0,0.000947]
[1767420605696,0.01109742,90111.0,90105.0,0.01109816]
[1767420605891,0.06976223,90112.0,90107.0,0.01109791]
[1767420606133,0.01109742,90111.0,90105.0,0.06658858]
[1767420606279,0.01109742,90111.0,90106.0,0.01109804]
[1767420606475,0.06976223,90112.0,90107.0,0.01109791]
[1767420606896,0.01109742,90111.0,90106.0,0.01109804]
[1767420607101,0.01112,90112.0,90107.0,0.01109791]
[1767420607341,0.0112714,90113.0,90110.0,0.01109754]
[1767420607581,0.0222168,90116.0,90108.0,0.01109779]
[1767420608023,0.0222168,90116.0,90100.0,0.05851019]
[1767420608024,0.01109742,90111.0,90100.0,0.05851019]
[1767420608219,0.01109828,90104.0,90101.0,0.04741203]
[1767420608465,0.05549251,90103.0,90101.0,0.04741203]
[1767420608679,0.0110984,90103.0,90100.0,0.01109816]
[1767420609027,0.01109804,90106.0,90100.0,0.02219693]
[1767420609265,0.01109804,90106.0,90101.0,0.01109865]
[1767420609479,0.01109804,90106.0,90100.0,0.02219693]
[1767420609842,0.01109816,90105.0,90100.0,0.02219693]
[1767420610528,0.01109804,90106.0,90101.0,0.01109865]
[1767420610735,0.01109791,90107.0,90102.0,0.01109853]
[1767420610925,0.01109779,90108.0,90102.0,0.01109853]
[1767420611189,0.06658651,90109.0,90103.0,0.0110984]
[1767420611900,0.01109779,90108.0,90103.0,0.0110984]
[1767420612058,0.01109767,90109.0,90103.0,0.0110984]
[1767420612261,0.01105469,90109.0,90104.0,0.01109828]
[1767420612664,0.01109767,90109.0,90104.0,0.01109828]
[1767420613086,0.01109767,90109.0,90103.0,0.0110984]
[1767420613921,0.01109754,90110.0,90104.0,0.01109828]
[1767420614419,0.01109754,90110.0,90105.0,0.01109816]
[1767420614599,0.01109742,90111.0,90106.0,0.01109804]
[1767420614797,0.06698239,90114.0,90106.0,0.01109804]
[1767420615022,0.0110973,90112.0,90107.0,0.01109791]
[1767420615698,0.01109717,90113.0,90108.0,0.01109779]
[1767420616093,0.01149705,90114.0,90109.0,0.01109767]
[1767420616293,0.01109717,90113.0,90108.0,0.01109779]
[1767420617518,0.01149705,90114.0,90109.0,0.01109767]
[1767420617926,0.01149705,90114.0,90110.0,0.01109754]
[1767420618124,0.01109717,90113.0,90107.0,0.01109791]
[1767420619421,0.0004,90114.0,90110.0,0.01109754]
[1767420620100,0.01149705,90114.0,90109.0,0.01109767]
[1767420620507,0.0004,90114.0,90109.0,0.01109767]
[1767420620718,0.01149705,90114.0,90108.0,0.06658623]
[1767420620999,0.0004,90114.0,90110.0,0.01109754]
[1767420621161,0.01149705,90114.0,90107.0,0.01109791]
[1767420621355,0.0110973,90112.0,90107.0,0.01109791]
[1767420621556,0.0004,90114.0,90112.0,0.000999]
[1767420622184,0.0004,90114.0,90110.0,0.01109754]
[1767420622358,0.0004,90114.0,90111.0,0.01109742]
[1767420623412,0.04754493,90115.0,90111.0,0.01109742]
[1767420623617,0.01109693,90115.0,90110.0,0.01109754]
[1767420623766,0.05864186,90115.0,90110.0,0.01109754]
[1767420624375,0.05864186,90115.0,90109.0,0.01109767]
[1767420624575,0.04754493,90115.0,90110.0,0.01109754]
[1767420624780,0.04754493,90115.0,90111.0,0.01109742]
[1767420627638,0.04754493,90115.0,90109.0,0.01109767]
[1767420627831,0.0222168,90116.0,90109.0,0.01109767]
[1767420628812,0.01109705,90114.0,90109.0,0.01109767]
[1767420629030,0.01109717,90113.0,90108.0,0.06658614]
[1767420629252,0.01109717,90113.0,90107.0,0.01109791]
[1767420629472,0.01109717,90113.0,90108.0,0.01109779]
[1767420630311,0.01109705,90114.0,90109.0,0.01109767]
[1767420631196,0.0110973,90112.0,90107.0,0.01109791]
[1767420631395,0.01109717,90113.0,90107.0,0.01109791]
[1767420631593,0.01109717,90113.0,90108.0,0.01109779]
[1767420632013,0.01109717,90113.0,90107.0,0.01109791]
[1767420632014,0.0110973,90112.0,90107.0,0.01109791]
[1767420632592,0.0110973,90112.0,90108.0,0.01109779]
[1767420633418,0.0110973,90112.0,90107.0,0.01109791]
[1767420633921,0.01109742,90111.0,90106.0,0.01109804]
[1767420634412,0.01109742,90111.0,90107.0,0.01109791]
[1767420634616,0.01109717,90113.0,90108.0,0.01109779]
[1767420634826,0.0110973,90112.0,90107.0,0.01109791]
[1767420635014,0.04828963,90115.0,90108.0,0.01109779]
[1767420635651,0.01109705,90114.0,90108.0,0.01109779]
[1767420635849,0.01109705,90114.0,90109.0,0.01109767]
[1767420636132,0.04828963,90115.0,90110.0,0.05548773]
[1767420636437,0.04828963,90115.0,90112.0,0.0110973]
[1767420636631,0.04828963,90115.0,90111.0,0.01109742]
[1767420636832,0.04828963,90115.0,90112.0,0.0110973]
[1767420638547,0.04828963,90115.0,90111.0,0.01109742]
[1767420639174,0.05938656,90115.0,90110.0,0.01109754]
[1767420639320,0.05938656,90115.0,90109.0,0.01109767]
[1767420639721,0.05938656,90115.0,90110.0,0.01109754]
[1767420641014,0.05940963,90116.0,90115.0,0.000599]
[1767420641212,0.0004,90117.0,90113.0,0.01109717]
[1767420641213,0.01152,90117.0,90114.0,0.06658229]
[1767420641425,0.01147872,90117.0,90114.0,0.01109705]
[1767420642402,0.01143612,90117.0,90114.0,0.0665822]
[1767420642711,0.01083712,90117.0,90114.0,0.0665822]
[1767420642934,0.0004,90118.0,90115.0,0.01109693]
[1767420643280,0.000358,90118.0,90115.0,0.01109693]
[1767420645265,0.000358,90118.0,90115.0,0.0665811]
[1767420645611,0.00072915,90116.0,90115.0,0.0665811]
[1767420645824,0.00068766,90116.0,90115.0,0.0665811]
[1767420646543,0.00064376,90116.0,90115.0,0.0665811]
[1767420647159,0.00060197,90116.0,90115.0,0.0665811]
[1767420650086,0.04828963,90130.0,90108.0,0.23134251]
[1767420650290,0.04828963,90128.0,90123.0,0.01109594]
[1767420650486,0.04828963,90128.0,90125.0,0.0110957]
[1767420650685,0.04828963,90128.0,90124.0,0.01109582]
[1767420651541,0.01112,90129.0,90125.0,0.0665742]
[1767420651732,0.0005514,90132.0,90129.0,0.0110952]
[1767420652081,0.05602592,90132.0,90125.0,0.0110957]
[1767420652279,0.05993586,90132.0,90127.0,0.01109545]
[1767420652482,0.01109496,90131.0,90126.0,0.01109557]
[1767420652682,0.01109508,90130.0,90126.0,0.01109557]
[1767420652896,0.01109496,90131.0,90125.0,0.0110957]
[1767420653146,0.05993586,90132.0,90125.0,0.0110957]
[1767420653517,0.05993586,90132.0,90128.0,0.01109533]
[1767420653724,0.04884103,90132.0,90128.0,0.01109533]
[1767420654170,0.01109496,90131.0,90125.0,0.0110957]
[1767420654356,0.01109508,90130.0,90125.0,0.0110957]
[1767420654676,0.01109496,90131.0,90126.0,0.01109557]
[1767420655021,0.05938459,90131.0,90126.0,0.01109557]
[1767420655911,0.01109508,90130.0,90124.0,0.01109582]
[1767420656089,0.05938459,90131.0,90125.0,0.0110957]
[1767420656885,0.01109508,90130.0,90125.0,0.0110957]
[1767420658508,0.0110952,90129.0,90125.0,0.0110957]
[1767420658729,0.0110952,90129.0,90122.0,0.01109606]
[1767420658935,0.0110952,90129.0,90124.0,0.01109582]
[1767420659478,0.01109533,90128.0,90122.0,0.01109606]
[1767420659693,0.04910008,90128.0,90122.0,0.01109606]
[1767420659877,0.01109582,90124.0,90120.0,0.01112]
[1767420660073,0.01109557,90126.0,90120.0,0.01116389]
[1767420660269,0.0110957,90125.0,90117.0,0.02221668]
[1767420660489,0.0554798,90123.0,90117.0,0.01112]
[1767420660694,0.01109594,90123.0,90117.0,0.01112]
[1767420660917,0.06019602,90123.0,90117.0,0.01112]
[1767420661147,0.06019602,90123.0,90106.0,0.00049978]
[1767420661148,0.06019713,90114.0,90108.0,0.01109779]
[1767420661294,0.01109804,90106.0,90098.0,0.13547713]
[1767420661662,0.04910008,90106.0,90099.0,0.07771295]
[1767420661848,0.01109754,90110.0,90103.0,0.02768815]
[1767420662052,0.04910008,90110.0,90106.0,0.01109804]
[1767420662253,0.04910008,90110.0,90105.0,0.01109816]
[1767420662411,0.04910008,90110.0,90106.0,0.01109804]
[1767420662837,0.06019762,90110.0,90104.0,0.01109828]
[1767420663009,0.04910008,90110.0,90106.0,0.01109804]
[1767420663820,0.04910008,90110.0,90104.0,0.01109828]
[1767420664164,0.04910008,90110.0,90105.0,0.01109816]
[1767420664543,0.04910008,90110.0,90107.0,0.01109791]
[1767420664726,0.04910008,90110.0,90106.0,0.01109804]
[1767420665064,0.06019762,90110.0,90105.0,0.01109816]
[1767420665219,0.0110973,90112.0,90106.0,0.01109804]
[1767420665421,0.01109742,90111.0,90106.0,0.01109804]
[1767420665635,0.01109754,90110.0,90105.0,0.01109816]
[1767420665835,0.01109754,90110.0,90106.0,0.01109804]
[1767420666295,0.01109767,90109.0,90104.0,0.01109828]
[1767420666474,0.01109742,90111.0,90105.0,0.01109816]
[1767420666689,0.01109779,90108.0,90103.0,0.0110984]
[1767420666964,0.01109767,90109.0,90103.0,0.0110984]
[1767420667175,0.01109754,90110.0,90104.0,0.05549143]
[1767420667486,0.01109767,90109.0,90104.0,0.01109828]
[1767420667676,0.01109754,90110.0,90105.0,0.01109816]
[1767420668041,0.01109742,90111.0,90105.0,0.01109816]
[1767420668241,0.01109742,90111.0,90107.0,0.01109791]
[1767420668641,0.01109754,90110.0,90105.0,0.01109816]
[1767420668843,0.01109742,90111.0,90106.0,0.01109804]
[1767420669451,0.01109742,90111.0,90105.0,0.01109816]
[1767420670090,0.01109742,90111.0,90106.0,0.01109804]
[1767420670317,0.0110973,90112.0,90107.0,0.01109791]
[1767420670661,0.01109742,90111.0,90105.0,0.01109816]
[1767420671003,9.172e-05,90114.0,90107.0,0.01109791]
[1767420671295,9.172e-05,90114.0,90109.0,0.01109767]
[1767420671458,9.172e-05,90114.0,90111.0,0.06658396]
[1767420672322,9.172e-05,90114.0,90113.0,0.05548588]
[1767420675281,0.01112,90120.0,90117.0,0.06657962]
[1767420675642,0.01112,90120.0,90117.0,0.06558062]
[1767420676268,0.01112,90120.0,90118.0,0.05548241]
[1767420677278,1e-08,90120.0,90118.0,0.05548241]
[1767420677996,5.186e-05,90120.0,90118.0,0.05548241]
[1767420679997,5.186e-05,90120.0,90117.0,0.06558062]
[1767420682239,8.6e-07,90120.0,90119.0,0.05548219]
[1767420682445,0.01112086,90120.0,90119.0,0.05548219]
[1767420684148,0.01109508,90130.0,90123.0,0.05547954]
[1767420684308,0.01112,90129.0,90127.0,0.01109545]
[1767420684518,0.01112,90128.0,90126.0,0.01109557]
[1767420685436,0.01112,90128.0,90123.0,0.06657521]
[1767420685767,5.1e-05,90126.0,90123.0,0.06657521]
[1767420686117,0.01112,90128.0,90125.0,0.0110957]
[1767420686756,0.01109508,90130.0,90125.0,0.0110957]
[1767420687067,0.01109496,90131.0,90127.0,0.01109545]
[1767420687270,5.1e-05,90127.0,90126.0,0.01109557]
[1767420687487,5.1e-05,90127.0,90126.0,0.05547788]
[1767420687678,0.0005514,90132.0,90127.0,0.01109545]
[1767420687880,0.01107623,90131.0,90127.0,0.01109545]
[1767420688620,0.01107623,90131.0,90128.0,0.01109533]
[1767420689802,0.01107623,90131.0,90128.0,0.0665715]
[1767420690154,0.01107623,90131.0,90127.0,0.01109545]
[1767420690378,0.01107623,90131.0,90128.0,0.01109533]
[1767420690732,0.01107623,90131.0,90127.0,0.06657256]
[1767420690733,0.01107623,90131.0,90127.0,0.01109545]
[1767420690871,0.01107623,90131.0,90128.0,0.01109533]
[1767420691074,0.01107623,90131.0,90127.0,0.01109545]
[1767420691514,0.01107623,90131.0,90128.0,0.01109533]
[1767420691934,0.01164623,90132.0,90126.0,0.01109557]
[1767420692110,0.01112,90130.0,90127.0,0.01109545]
[1767420692424,0.01112,90130.0,90126.0,0.01109557]
[1767420692625,0.01112,90129.0,90126.0,0.01109557]
[1767420692832,0.0222152,90129.0,90124.0,0.01109582]
[1767420693128,0.01112,90129.0,90125.0,0.0110957]
[1767420695215,0.0222152,90129.0,90124.0,0.01109582]
[1767420695870,0.01109533,90128.0,90123.0,0.01109594]
[1767420696071,0.01109533,90128.0,90124.0,0.01109582]
[1767420696267,0.0222152,90129.0,90124.0,0.01109582]
[1767420696472,0.0222152,90129.0,90125.0,0.0110957]
[1767420700214,0.01112,90129.0,90126.0,0.06657345]
[1767420700438,0.01112,90129.0,90125.0,0.0110957]
[1767420702086,0.01112,90129.0,90126.0,0.01109557]
[1767420703042,0.010121,90129.0,90124.0,0.01109582]
[1767420703265,0.01109533,90128.0,90122.0,0.01109606]
[1767420703411,0.000999,90124.0,90121.0,0.01109619]
[1767420703609,0.01209482,90124.0,90119.0,0.06657813]
[1767420703796,0.01109643,90119.0,90112.0,0.05713694]
[1767420704002,0.01109693,90115.0,90112.0,0.04609149]
[1767420704356,0.0110968,90116.0,90112.0,5.185e-05]
[1767420704511,0.01109693,90115.0,90112.0,5.185e-05]
[1767420704707,0.01105376,90117.0,90112.0,0.01114915]
[1767420704917,0.0665795,90118.0,90113.0,0.01109717]
[1767420705323,0.01109668,90117.0,90113.0,0.01109717]
[1767420705523,0.0110968,90116.0,90112.0,0.01114915]
[1767420705720,0.01109668,90117.0,90112.0,0.01114915]
[1767420705932,0.01109656,90118.0,90112.0,5.185e-05]
[1767420706156,0.06658172,90115.0,90112.0,5.185e-05]
[1767420706335,0.01109693,90115.0,90112.0,5.185e-05]
[1767420706787,0.02221668,90117.0,90112.0,0.01114915]
[1767420707003,0.02221668,90117.0,90113.0,0.01109717]
[1767420707153,0.01112,90117.0,90113.0,0.01109717]
[1767420707956,0.01112,90117.0,90114.0,0.01109705]
[1767420710902,0.01112,90117.0,90113.0,0.01109717]
[1767420711307,0.01112,90117.0,90114.0,0.01109705]
[1767420711667,0.01112,90117.0,90113.0,0.01109717]
[1767420712294,0.02221668,90117.0,90112.0,5.185e-05]
[1767420712501,0.02221668,90117.0,90112.0,0.01114915]
[1767420714499,0.01112,90117.0,90113.0,0.01109717]
[1767420716522,0.02221668,90117.0,90112.0,0.01114915]
[1767420717272,0.01112,90117.0,90113.0,0.01109717]
[1767420717566,0.01112,90117.0,90113.0,0.01054074]
[1767420718428,0.01112,90117.0,90114.0,0.01109705]
[1767420719212,0.01112,90117.0,90113.0,0.01054074]
[1767420719575,0.01112,90117.0,90114.0,0.01109705]
[1767420720517,0.01112,90117.0,90113.0,0.01054074]
[1767420720713,0.01112,90117.0,90114.0,0.01109705]
[1767420722406,0.01112,90117.0,90113.0,0.01054074]
[1767420722756,0.01112,90117.0,90114.0,0.01109705]
[1767420722957,0.01112,90117.0,90113.0,0.01054074]
[1767420723390,0.02221668,90117.0,90113.0,0.01054074]
[1767420723965,0.02221668,90117.0,90112.0,0.01114915]
[1767420724364,0.01112,90117.0,90113.0,0.01109717]
[1767420724564,0.02221668,90117.0,90112.0,0.01114915]
[1767420724816,0.02221668,90117.0,90113.0,0.01109717]
[1767420725234,0.01112,90117.0,90113.0,0.01109717]
[1767420725788,0.02221668,90117.0,90112.0,0.01114915]
[1767420726449,0.0110968,90116.0,90112.0,5.185e-05]
[1767420727221,0.02221668,90117.0,90113.0,0.01109717]